Workbook

Sheet паспорт
A1: ПАТ "УКРТРАНСГАЗ" | G1: ПАСПОРТ ФІЗИКО-ХІМІЧНИХ ПОКАЗНИКІВ ПРИРОДНОГО ГАЗУ № 878
A2: Філія "УМГ "Черкаситрансгаз" | G2: переданого Кременчуцьким ЛВУМГ та прийнятого ПАТ "Кременчукгаз", ВАТ "Кіровоградгаз",
A3: Кременчуцьке ЛВУМГ | G3: Маршрут № 878
A4: Вимірювальна хіміко-аналітична лабораторія
A5: Кременчуцького промислового майданчика
A6: Свідоцтво № 0612 КФ від 30.12.15р. чинне до 20.06.19р. | K6: по газопроводу "Диканька-Кременчук-Кривий Ріг" | V6: за період з | X6: 2017-03-01 | Z6: по | AA6: 2017-03-31
A8: Число місяця | B8: Компонентний склад, % мол. | N8: Фізико-хімічні показники газу обчислені на основі компонентного складу, 101,325 кПа | X8: Температура точки роси за вологою (Р = 3.92 МПа), °С | Y8: Температура точки роси за вуглеводнями, °С | Z8: Вміст сірководню, г/м3 | AA8: Вміст меркаптанової сірки, г/м3 | AB8: Вміст механічних домішок, г/м3
N9: Густина абсолютна, кг/м3,при 20 °С, | O9: Температура вимірювання/згоряння при 20/25°С
B10: метан, С1 | C10: етан, С2 | D10: пропан, С3 | E10: ізо-бутан, і-С4 | F10: н-бутан, н-С4 | G10: нео-пентан, нео-С5 | H10: ізо-пентан, і-С5 | I10: н-пентан, н-С5 | J10: гексани та вищі, С6+ | K10: кисень, О2 | L10: азот, N2 | M10: діоксид вуглецю, CО2 | O10: Теплота згоряння нижча | R10: Теплота згоряння вища | U10: Число Воббе вище
O11: ккал/м³ | P11: МДж/м³ | Q11: кВт⋅год/м³ | R11: ккал/м³ | S11: МДж/м³ | T11: кВт⋅год/м³ | U11: ккал/м³ | V11: МДж/м³ | W11: кВт⋅год/м³
A12: 1 | O12: =P12*238.8459 -> 8240.18355 | P12: 34.5 | Q12: =P12/3.6 -> 9.583333333 | R12: =S12*238.8459 -> 9128.690298 | S12: 38.22 | T12: =S12/3.6 -> 10.61666667 | AC12: =SUM(B12:M12)+$K$43+$N$43 -> 0
A13: 2 | O13: =P13*238.8459 -> 8240.18355 | P13: 34.5 | Q13: 9.583333333 | R13: =S13*238.8459 -> 9128.690298 | S13: 38.22 | T13: 10.61666667 | AC13: 0
A14: 3 | O14: 8240.18355 | P14: 34.5 | Q14: 9.583333333 | R14: 9128.690298 | S14: 38.22 | T14: 10.61666667 | AC14: 0 | AD14: =IF(AC14=100,"ОК"," ") -> 
A15: 4 | O15: 8240.18355 | P15: 34.5 | Q15: 9.583333333 | R15: 9128.690298 | S15: 38.22 | T15: 10.61666667 | AC15: 0 | AD15: =IF(AC15=100,"ОК"," ") -> 
A16: 5 | O16: 8240.18355 | P16: 34.5 | Q16: 9.583333333 | R16: 9128.690298 | S16: 38.22 | T16: 10.61666667 | AC16: 0
A17: 6 | B17: 90.8294 | C17: 4.391 | D17: 1.2395 | E17: 0.1321 | F17: 0.2263 | G17: 0.0045 | H17: 0.0534 | I17: 0.044 | J17: 0.0521 | K17: 0.0006 | L17: 1.3025 | M17: 1.7246 | N17: 0.7454 | O17: 8278.398894 | P17: 34.66 | Q17: 9.627777778 | R17: 9171.68256 | S17: 38.4 | T17: 10.66666667 | U17: 11 658 | V17: 48,81 | W17: =V17/3.6 -> 13.55833333 | X17: -9,1 | AC17: 100 | AD17: ОК
A18: 7 | O18: 8278.398894 | P18: 34.66 | Q18: 9.627777778 | R18: 9171.68256 | S18: 38.4 | T18: 10.66666667 | AC18: 0
A19: 8 | O19: 8278.398894 | P19: 34.66 | Q19: 9.627777778 | R19: 9171.68256 | S19: 38.4 | T19: 10.66666667 | AC19: 0
A20: 9 | O20: 8278.398894 | P20: 34.66 | Q20: 9.627777778 | R20: 9171.68256 | S20: 38.4 | T20: 10.66666667 | AC20: 0
A21: 10 | O21: 8278.398894 | P21: 34.66 | Q21: =P21/3.6 -> 9.627777778 | R21: 9171.68256 | S21: 38.4 | T21: =S21/3.6 -> 10.66666667 | AC21: 0
A22: 11 | O22: 8278.398894 | P22: 34.66 | Q22: 9.627777778 | R22: 9171.68256 | S22: 38.4 | T22: 10.66666667 | AC22: 0
A23: 12 | O23: 8278.398894 | P23: 34.66 | Q23: 9.627777778 | R23: 9171.68256 | S23: 38.4 | T23: 10.66666667 | AC23: 0
A24: 13 | B24: 90.77 | C24: 4.3861 | D24: 1.2024 | E24: 0.1295 | F24: 0.2236 | G24: 0.0047 | H24: 0.0536 | I24: 0.0448 | J24: 0.0499 | K24: 0.0009 | L24: 1.3837 | M24: 1.7508 | N24: 0.7455 | O24: 8264.06814 | P24: 34.6 | Q24: 9.611111111 | R24: 9154.963347 | S24: 38.33 | T24: 10.64722222 | U24: 11 636 | V24: 48,72 | W24: =V24/3.6 -> 13.53333333 | X24: -9,4 | AC24: 100 | AD24: ОК
A25: 14 | O25: 8264.06814 | P25: 34.6 | Q25: 9.611111111 | R25: 9154.963347 | S25: 38.33 | T25: 10.64722222 | AC25: 0
A26: 15 | O26: 8264.06814 | P26: 34.6 | Q26: 9.611111111 | R26: 9154.963347 | S26: 38.33 | T26: 10.64722222 | AC26: 0
A27: 16 | O27: 8264.06814 | P27: 34.6 | Q27: =P27/3.6 -> 9.611111111 | R27: 9154.963347 | S27: 38.33 | T27: =S27/3.6 -> 10.64722222 | AC27: 0
A28: 17 | O28: 8264.06814 | P28: 34.6 | Q28: 9.611111111 | R28: 9154.963347 | S28: 38.33 | T28: 10.64722222 | AC28: 0
A29: 18 | O29: 8264.06814 | P29: 34.6 | Q29: 9.611111111 | R29: 9154.963347 | S29: 38.33 | T29: 10.64722222 | AC29: 0
A30: 19 | O30: 8264.06814 | P30: 34.6 | Q30: 9.611111111 | R30: 9154.963347 | S30: 38.33 | T30: 10.64722222 | AC30: 0
A31: 20 | B31: 91.0043 | C31: 4.3456 | D31: 1.101 | E31: 0.1217 | F31: 0.2026 | G31: 0.0045 | H31: 0.051 | I31: 0.0414 | J31: 0.0465 | K31: 0.001 | L31: 1.5495 | M31: 1.5309 | N31: 0.7416 | O31: 8244.960468 | P31: 34.52 | Q31: 9.588888889 | R31: 9133.467216 | S31: 38.24 | T31: 10.62222222 | U31: 11641 | V31: 48.74 | W31: 13.53888889 | X31: -9.1 | AC31: 100 | AD31: =IF(AC31=100,"ОК"," ") -> ОК
A32: 21 | O32: 8244.960468 | P32: 34.52 | Q32: 9.588888889 | R32: 9133.467216 | S32: 38.24 | T32: 10.62222222 | AC32: 0
A33: 22 | O33: 8244.960468 | P33: 34.52 | Q33: 9.588888889 | R33: 9133.467216 | S33: 38.24 | T33: 10.62222222 | AC33: 0
A34: 23 | O34: 8244.960468 | P34: 34.52 | Q34: =P34/3.6 -> 9.588888889 | R34: 9133.467216 | S34: 38.24 | T34: =S34/3.6 -> 10.62222222 | AC34: 0 | AD34: =IF(AC34=100,"ОК"," ") -> 
A35: 24 | O35: 8244.960468 | P35: 34.52 | Q35: 9.588888889 | R35: 9133.467216 | S35: 38.24 | T35: 10.62222222 | AC35: 0
A36: 25 | O36: 8244.960468 | P36: 34.52 | Q36: 9.588888889 | R36: 9133.467216 | S36: 38.24 | T36: 10.62222222 | AC36: 0
A37: 26 | O37: 8244.960468 | P37: 34.52 | Q37: 9.588888889 | R37: 9133.467216 | S37: 38.24 | T37: =S37/3.6 -> 10.62222222 | AC37: 0
A38: 27 | B38: 90.8199 | C38: 4.3366 | D38: 1.1852 | E38: 0.1297 | F38: 0.2271 | G38: 0.0047 | H38: 0.0544 | I38: 0.0452 | J38: 0.0509 | K38: 0.0009 | L38: 1.3137 | M38: 1.8317 | N38: 0.7457 | O38: 8259.291222 | P38: 34.58 | Q38: 9.605555556 | R38: 9150.186429 | S38: 38.31 | T38: 10.64166667 | U38: 11628 | V38: 48.68 | W38: 13.52222222 | X38: -9.6 | Z38: 0.002 | AA38: 0.0023 | AB38: відсутні | AC38: 100 | AD38: ОК
A39: 28 | O39: 8259.291222 | P39: 34.58 | Q39: 9.605555556 | R39: 9150.186429 | S39: 38.31 | T39: 10.64166667 | AC39: 0
A40: 29 | O40: 8259.291222 | P40: 34.58 | Q40: =P40/3.6 -> 9.605555556 | R40: 9150.186429 | S40: 38.31 | T40: =S40/3.6 -> 10.64166667 | AC40: 0
A41: 30 | O41: 8259.291222 | P41: 34.58 | Q41: =P41/3.6 -> 9.605555556 | R41: 9150.186429 | S41: 38.31 | T41: =S41/3.6 -> 10.64166667 | AC41: 0
A42: 31 | O42: 8259.291222 | P42: 34.58 | Q42: =P42/3.6 -> 9.605555556 | R42: 9150.186429 | S42: 38.31 | T42: =S42/3.6 -> 10.64166667 | AC42: 0
A43: Рівень одоризації відповідає чинним нормативним документам | O43: =AVERAGE(O12:O42) -> 8258.366657 | P43: 34.57612903 | Q43: 9.604480287 | R43: 9148.876629 | S43: 38.30451613 | T43: 10.64014337
H44: Середньозважене значення теплоти згоряння:
B46: Головний інженер Кременчуцького ЛВУМГ | N46: Грицик О. М. | Z46: 2017-04-03
C47: Підрозділу підприємства, якому підпорядкована лабораторія | M47: прізвище | V47: підпис | Z47: дата
B48: Інженер-лаборант ВХАЛ | N48: Голованова Ж. К. | Z48: 2017-04-03
C49: Лабораторія, де здійснювалось вимірювання газу | M49: прізвище | V49: підпис | Z49: дата
B50: Провідний економіст із збуту | N50: Кривулькін І. В. | Z50: 2017-04-03
C51: Підрозділу, відповідального за облік газу за маршрутом | M51: прізвище | V51: підпис | Z51: дата

Sheet додаток
A2: Додаток до Паспорту фізико-хімічних показників природного газу № 878
A4: Область | B4: ГРС, прямий споживач | C4: Cередньозважене значення вищої теплоти згоряння
C5: МДж/м³ | D5: ккал/м³ | E5: кВт*год./м³
A6: Полтавська область | B6: ГРС Крюків | C6: 38.30408613 | D6: 9148.773925 | E6: 10.64002392
A7: Кіровоградська область | B7: ГРС Успенка | C7: 38.30484481 | D7: 9148.955133 | E7: 10.64023467
B8: ГРС Онуфріївка | C8: 38.30490429 | D8: 9148.96934 | E8: 10.64025119
B9: ГРС Світловодськ | C9: 38.30545417 | D9: 9149.100677 | E9: 10.64040394
A10: Середньозважене значення вищої теплоти згоряння по маршруту № 878 | C10: 38.30467528 | D10: 9148.914641 | E10: 10.64018758
A14: Головний інженер Кременчуцького ЛВУМГ | D14: Грицик О. М. | F14: 2017-04-03
A15: Підрозділу підприємства, якому підпорядкована лабораторія | D15: прізвище | E15: підпис | F15: дата
A16: Інженер-лаборант ВХАЛ | D16: Голованова Ж. К. | F16: 2017-04-03
A17: Лабораторія, де здійснювалось вимірювання газу | D17: прізвище | E17: підпис | F17: дата
A18: Провідний економіст із збуту | D18: Кривулькін І. В. | F18: 2017-04-03
A19: Підрозділу, відповідального за облік газу за маршрутом | D19: прізвище | E19: підпис | F19: дата

Sheet variablesList (hidden)
A1: 3 | B1: x:\gaysin | C1: 10, 11, 24, 25, 127, 128, 132, 180, 207, 215 | D1: x:\
B2: x:\Illinci
B3: x:\Talne
